fUSD/lending_fUSD_20250105
["ID","MTS","AMOUNT","RATE_DAILY","PERIOD"]
[347750182,1736093472026,-785.01,0.00010136,2]
[347750183,1736093472035,-2074.96,0.00010136,2]
[347750184,1736093472044,-500.0,0.00010136,2]
[347750185,1736093472053,-1942.88,0.00010136,2]
[347750186,1736093472063,-500.0,0.00010136,2]
[347750187,1736093472072,-582.62,0.00010136,2]
[347750188,1736093472081,-500.0,0.00010136,2]
[347750189,1736093472090,-5066.49,0.00010136,2]
[347750190,1736093472099,-1196.95,0.00010136,2]
[347750191,1736093472108,-500.0,0.00010136,2]
[347750192,1736093472118,-500.0,0.00010136,2]
[347750193,1736093472127,-651.13,0.00010136,2]
[347750194,1736093472137,-1012.85,0.00010136,2]
[347750195,1736093472146,-500.0,0.00010136,2]
[347750196,1736093472155,-511.08,0.00010136,2]
[347750197,1736093472165,-766.4,0.00010136,2]
[347750198,1736093472174,-1917.18,0.00010136,2]
[347750199,1736093472183,-162.382441,0.00010136,2]
[347750200,1736093472192,-500.0,0.00010136,2]
[347750201,1736093472202,-751.14,0.00010136,2]
[347750202,1736093472211,-500.0,0.00010136,2]
[347750203,1736093472220,-952.56,0.00010136,2]
[347750204,1736093472230,-754.41,0.00010136,2]
[347750205,1736093472239,-1737.28,0.00010136,2]
[347750206,1736093472249,-886.39,0.00010136,2]
[347750207,1736093472258,-500.0,0.00010136,2]
[347750208,1736093472268,-500.0,0.00010136,2]
[347750209,1736093472277,-500.0,0.00010136,2]
[347750210,1736093472286,-526.36,0.00010136,2]
[347750211,1736093472295,-737.15,0.00010136,2]
[347750212,1736093472304,-532.58190395,0.00010136,2]
[347750213,1736093472314,-3524.74,0.00010136,2]
[347750214,1736093472323,-500.0,0.00010136,2]
[347750215,1736093472332,-500.0,0.00010136,2]
[347750216,1736093472342,-761.43,0.00010136,2]
[347750217,1736093472351,-500.0,0.00010136,2]
[347750218,1736093472361,-500.0,0.00010136,2]
[347750219,1736093472371,-642.49,0.00010136,2]
[347750220,1736093472380,-562.21,0.00010136,2]
[347750221,1736093472390,-735.44,0.00010136,2]
[347750222,1736093472399,-500.0,0.00010136,2]
[347750223,1736093472409,-500.0,0.00010136,2]
[347750224,1736093472418,-3187.24,0.00010136,2]
[347750225,1736093472428,-882.75,0.00010136,2]
[347750226,1736093472438,-546.34,0.00010136,2]
[347750227,1736093472448,-520.15,0.00010136,2]
[347750228,1736093472458,-500.0,0.00010136,2]
[347750229,1736093472468,-649.07,0.00010136,2]
[347750230,1736093472478,-844.88,0.00010136,2]
[347750231,1736093472491,-774.09,0.00010136,2]
[347750232,1736093472500,-2003.22,0.00010136,2]
[347750233,1736093472509,-500.0,0.00010136,2]
[347750234,1736093472519,-528.73,0.00010136,2]
[347750235,1736093472529,-852.93,0.00010136,2]
[347750236,1736093472539,-500.0,0.00010136,2]
[347750237,1736093472549,-810.2,0.00010136,2]
[347750238,1736093472559,-829.01,0.00010136,2]
[347750239,1736093472569,-531.05,0.00010136,2]
[347750240,1736093472579,-682.3,0.00010136,2]
[347750241,1736093472588,-549.67,0.00010136,2]
[347750242,1736093472597,-2055.76,0.00010136,2]
[347750243,1736093472607,-543.01,0.00010136,2]
[347750244,1736093472616,-500.0,0.00010136,2]
[347750245,1736093472626,-500.0,0.00010136,2]
[347750246,1736093472635,-500.0,0.00010136,2]
[347750247,1736093472646,-2363.08,0.00010136,2]
[347750248,1736093472656,-715.52,0.00010136,2]
[347750249,1736093472666,-608.96,0.00010136,2]
[347750250,1736093472675,-500.0,0.00010136,2]
[347750251,1736093472686,-500.0,0.00010136,2]
[347750252,1736093472695,-500.0,0.00010136,2]
[347750253,1736093472703,-511.54,0.00010136,2]
[347750254,1736093472712,-816.37,0.00010136,2]
[347750255,1736093472722,-547.7,0.00010136,2]
[347750256,1736093472731,-2036.65,0.00010136,2]
[347750257,1736093472741,-710.61,0.00010136,2]
[347750258,1736093472750,-540.03,0.00010136,2]
[347750259,1736093472760,-560.43,0.00010136,2]
[347750260,1736093472769,-500.0,0.00010136,2]
[347750261,1736093472778,-1095.6,0.00010136,2]
[347750262,1736093472788,-587.66,0.00010136,2]
[347750263,1736093472797,-500.0,0.00010136,2]
[347750264,1736093472806,-946.46,0.00010136,2]
[347750265,1736093472816,-584.75,0.00010136,2]
[347750266,1736093472826,-500.0,0.00010136,2]
[347750267,1736093472835,-777.09,0.00010136,2]
[347750268,1736093472844,-500.0,0.00010136,2]
[347750269,1736093472854,-500.0,0.00010136,2]
[347750270,1736093472864,-500.0,0.00010136,2]
[347750271,1736093472873,-500.0,0.00010136,2]
[347750272,1736093472883,-500.0,0.00010136,2]
[347750273,1736093472892,-660.74,0.00010136,2]
[347750274,1736093472903,-836.67,0.00010136,2]
[347750275,1736093472912,-3034.01,0.00010136,2]
[347750276,1736093472922,-645.35,0.00010136,2]
[347750277,1736093472932,-1046.1,0.00010136,2]
[347750278,1736093472942,-3701.46,0.00010136,2]
[347750279,1736093472951,-941.56,0.00010136,2]
[347750280,1736093472960,-500.0,0.00010136,2]
[347750281,1736093472970,-568.91,0.00010136,2]
[347750282,1736093472979,-833.84,0.00010136,2]
[347750283,1736093472989,-820.61,0.00010136,2]
[347750284,1736093472998,-582.64,0.00010136,2]
[347750285,1736093473008,-621.13,0.00010136,2]
[347750286,1736093473018,-501.63,0.00010136,2]
[347750287,1736093473028,-500.0,0.00010136,2]
[347750288,1736093473037,-615.11,0.00010136,2]
[347750289,1736093473047,-649.76,0.00010136,2]
[347750290,1736093473057,-500.0,0.00010136,2]
[347750291,1736093473068,-868.56,0.00010136,2]
[347750292,1736093473078,-1688.62,0.00010136,2]
[347750293,1736093473087,-3762.06,0.00010136,2]
[347750294,1736093473098,-1145.74,0.00010136,2]
[347750295,1736093473108,-525.35,0.00010136,2]
[347750296,1736093473118,-574.53,0.00010136,2]
[347750297,1736093473127,-500.0,0.00010136,2]
[347750298,1736093473137,-702.61,0.00010136,2]
[347750299,1736093473147,-553.77,0.00010136,2]
[347750300,1736093473156,-898.96,0.00010136,2]
[347750301,1736093473166,-1387.22,0.00010136,2]
[347750302,1736093473176,-574.79,0.00010136,2]
[347750303,1736093473187,-549.17,0.00010136,2]
[347750304,1736093473197,-729.47,0.00010136,2]
[347750305,1736093473206,-910.32,0.00010136,2]
[347750306,1736093473215,-500.0,0.00010136,2]
[347750307,1736093473224,-500.0,0.00010136,2]
[347750308,1736093473233,-527.29,0.00010136,2]
[347750309,1736093473242,-500.0,0.00010136,2]
[347750310,1736093473251,-970.62,0.00010136,2]
[347750311,1736093473260,-500.0,0.00010136,2]
[347750312,1736093473269,-500.0,0.00010136,2]
[347750313,1736093473280,-676.38,0.00010136,2]
[347750314,1736093473290,-879.45,0.00010136,2]
[347750315,1736093473299,-504.21,0.00010136,2]
[347750316,1736093473309,-701.89,0.00010136,2]
[347750317,1736093473318,-919.5,0.00010136,2]
[347750318,1736093473328,-652.07,0.00010136,2]
[347750319,1736093473337,-500.0,0.00010136,2]
[347750320,1736093473346,-500.0,0.00010136,2]
[347750321,1736093473356,-899.28,0.00010136,2]
[347750322,1736093473365,-605.08,0.00010136,2]
[347750323,1736093473375,-878.43,0.00010136,2]
[347750324,1736093473385,-500.0,0.00010136,2]
[347750325,1736093473394,-867.42,0.00010136,2]
[347750326,1736093473404,-1210.23,0.00010136,2]
[347750327,1736093473413,-1086.36,0.00010136,2]
[347750328,1736093473423,-676.02,0.00010136,2]
[347750329,1736093473433,-767.55,0.00010136,2]
[347750330,1736093473442,-853.53,0.00010136,2]
[347750331,1736093473452,-500.0,0.00010136,2]
[347750332,1736093473461,-500.0,0.00010136,2]
[347750333,1736093473471,-500.0,0.00010136,2]
[347750334,1736093473480,-705.93,0.00010136,2]
[347750335,1736093473492,-500.0,0.00010136,2]
[347750336,1736093473502,-500.0,0.00010136,2]
[347750337,1736093473511,-914.97,0.00010136,2]
[347750338,1736093473521,-500.0,0.00010136,2]
[347750339,1736093473530,-675.73,0.00010136,2]
[347750340,1736093473541,-672.42,0.00010136,2]
[347750341,1736093473550,-727.18,0.00010136,2]
[347750342,1736093473560,-500.0,0.00010136,2]
[347750343,1736093473570,-567.84,0.00010136,2]
[347750344,1736093473579,-552.49,0.00010136,2]
[347750345,1736093473588,-500.0,0.00010136,2]
[347750346,1736093473598,-764.16,0.00010136,2]
[347750347,1736093473607,-1325.59,0.00010136,2]
[347750348,1736093473617,-543.8,0.00010136,2]
[347750349,1736093473629,-643.31,0.00010136,2]
[347750350,1736093473639,-681.31,0.00010136,2]
[347750351,1736093473649,-1100.99,0.00010136,2]
[347750352,1736093473659,-254.95178716,0.00010136,2]
[347750353,1736093473669,-554.91,0.00010136,2]
[347750354,1736093473678,-572.41,0.00010136,2]
[347750355,1736093473687,-500.0,0.00010136,2]
[347750356,1736093473697,-980.48,0.00010136,2]
[347750357,1736093473707,-578.15,0.00010136,2]
[347750358,1736093473717,-631.99,0.00010136,2]
[347750359,1736093473727,-1267.42,0.00010136,2]
[347750360,1736093473737,-680.55,0.00010136,2]
[347750361,1736093473746,-906.26,0.00010136,2]
[347750362,1736093473755,-3974.11,0.00010136,2]
[347750363,1736093473765,-1573.57,0.00010136,2]
[347750364,1736093473774,-500.0,0.00010136,2]
[347750365,1736093473783,-500.0,0.00010136,2]
[347750366,1736093473793,-809.64,0.00010136,2]
[347750367,1736093473802,-703.17,0.00010136,2]
[347750368,1736093473811,-500.0,0.00010136,2]
[347750369,1736093473820,-591.69,0.00010136,2]
[347750370,1736093473829,-500.0,0.00010136,2]
[347750371,1736093473840,-1135.97,0.00010136,2]
[347750372,1736093473849,-520.01,0.00010136,2]
[347750373,1736093473859,-1452.66,0.00010136,2]
[347750374,1736093473871,-1808.46,0.00010136,2]
[347750375,1736093473881,-602.76,0.00010136,2]
[347750376,1736093473891,-500.0,0.00010136,2]
[347750377,1736093473902,-833.46,0.00010136,2]
[347750378,1736093473912,-618.53,0.00010136,2]
[347750379,1736093473921,-651.97,0.00010136,2]
[347750380,1736093473930,-1575.34,0.00010136,2]
[347750381,1736093473939,-911.74,0.00010136,2]
[347750382,1736093473948,-568.0,0.00010136,2]
[347750383,1736093473957,-1028.15,0.00010136,2]
[347750384,1736093473966,-721.89,0.00010136,2]
[347750385,1736093473976,-633.58,0.00010136,2]
[347750386,1736093473985,-500.0,0.00010136,2]
[347750387,1736093473995,-3107.24,0.00010136,2]
[347750388,1736093474004,-1378.57,0.00010136,2]
[347750389,1736093474014,-500.0,0.00010136,2]
[347750390,1736093474023,-675.6,0.00010136,2]
[347750391,1736093474033,-500.0,0.00010136,2]
[347750392,1736093474042,-790.0,0.00010136,2]
[347750393,1736093474052,-500.0,0.00010136,2]
[347750394,1736093474062,-747.11,0.00010136,2]
[347750395,1736093474072,-1312.45,0.00010136,2]
[347750396,1736093474082,-2431.88,0.00010136,2]
[347750397,1736093474092,-660.9,0.00010136,2]
[347750398,1736093474102,-741.89,0.00010136,2]
[347750399,1736093474112,-500.0,0.00010136,2]
[347750400,1736093474122,-998.2,0.00010136,2]
[347750401,1736093474131,-742.57,0.00010136,2]
[347750402,1736093474142,-950.19,0.00010136,2]
[347750403,1736093474151,-545.49,0.00010136,2]
[347750404,1736093474160,-851.4,0.00010136,2]
[347750405,1736093474170,-500.0,0.00010136,2]
[347750406,1736093474180,-1502.24,0.00010136,2]
[347750407,1736093474189,-500.0,0.00010136,2]
[347750408,1736093474199,-1529.57,0.00010136,2]
[347750409,1736093474209,-775.67,0.00010136,2]
[347750410,1736093474219,-829.09,0.00010136,2]
[347750411,1736093474229,-500.0,0.00010136,2]
[347750412,1736093474239,-643.9,0.00010136,2]
[347750413,1736093474249,-596.39,0.00010136,2]
[347750414,1736093474259,-1972.78,0.00010136,2]
[347750415,1736093474268,-2401.07,0.00010136,2]
[347750416,1736093474277,-376.057504,0.00010136,2]
[347750417,1736093474288,-500.0,0.00010136,2]
[347750418,1736093474298,-500.0,0.00010136,2]
[347750419,1736093474307,-7216.14,0.00010136,2]
[347750420,1736093474317,-4809.85,0.00010136,2]
[347750421,1736093474328,-500.0,0.00010136,2]
[347750422,1736093474339,-500.0,0.00010136,2]
[347750423,1736093474348,-1336.17,0.00010136,2]
[347750424,1736093474357,-4510.33,0.00010136,2]
[347750425,1736093474367,-664.2,0.00010136,2]
[347750426,1736093474377,-2680.26,0.00010136,2]
[347750427,1736093474387,-897.44,0.00010136,2]
[347750428,1736093474396,-376.812101,0.00010136,2]
[347750429,1736093474406,-402.062172,0.00010136,2]
[347750430,1736093474417,-514.62,0.00010136,2]
[347750431,1736093474427,-863.94,0.00010136,2]
[347750432,1736093474437,-2020.86,0.00010136,2]
[347750433,1736093474447,-500.0,0.00010136,2]
[347750434,1736093474456,-845.14,0.00010136,2]
[347750435,1736093474465,-1165.06,0.00010136,2]
[347750436,1736093474476,-898.28,0.00010136,2]
[347750437,1736093474487,-500.0,0.00010136,2]
[347750438,1736093474499,-682.97,0.00010136,2]
[347750439,1736093474509,-377.384262,0.00010136,2]
[347750440,1736093474518,-402.854924,0.00010136,2]
[347750441,1736093474528,-4822.3,0.00010136,2]
[347750442,1736093474538,-2567.67,0.00010136,2]
[347750443,1736093474548,-820.85,0.00010136,2]
[347750444,1736093474558,-730.9,0.00010136,2]
[347750445,1736093474570,-1978.57,0.00010136,2]
[347750446,1736093474580,-905.94,0.00010136,2]
[347750447,1736093474589,-500.0,0.00010136,2]
[347750448,1736093474600,-924.98,0.00010136,2]
[347750449,1736093474611,-730.86,0.00010136,2]
[347750450,1736093474621,-213.15982297,0.00010136,2]
[347750451,1736093474631,-500.0,0.00010136,2]
[347750452,1736093474641,-500.0,0.00010136,2]
[347750453,1736093474651,-1891.01,0.00010136,2]
[347750454,1736093474662,-1979.73,0.00010136,2]
[347750455,1736093474672,-403.649579,0.00010136,2]
[347750456,1736093474683,-377.632664,0.00010136,2]
[347750457,1736093474693,-923.16,0.00010136,2]
[347750458,1736093474702,-1008.74,0.00010136,2]
[347750459,1736093474712,-5323.99,0.00010136,2]
[347750460,1736093474722,-634.71,0.00010136,2]
[347750461,1736093474733,-654.82,0.00010136,2]
[347750462,1736093474744,-1030.31,0.00010136,2]
[347750463,1736093474753,-910.23,0.00010136,2]
[347750464,1736093474764,-6129.68,0.00010136,2]
[347750465,1736093474774,-599.32,0.00010136,2]
[347750466,1736093474784,-404.206485,0.00010136,2]
[347750467,1736093474795,-3801.67,0.00010136,2]
[347750468,1736093474805,-500.0,0.00010136,2]
[347750469,1736093474815,-2105.78,0.00010136,2]
[347750470,1736093474824,-1038.71,0.00010136,2]
[347750471,1736093474834,-2739.97,0.00010136,2]
[347750472,1736093474844,-1877.63,0.00010136,2]
[347750473,1736093474853,-1306.48,0.00010136,2]
[347750474,1736093474863,-700.64,0.00010136,2]
[347750475,1736093474874,-377.522457,0.00010136,2]
[347750476,1736093474884,-1088.73,0.00010136,2]
[347750477,1736093474895,-1166.76,0.00010136,2]
[347750478,1736093474904,-4575.44,0.00010136,2]
[347750479,1736093474914,-500.0,0.00010136,2]
[347750480,1736093474923,-844.34,0.00010136,2]
[347750481,1736093474934,-3359.4,0.00010136,2]
[347750482,1736093474944,-500.0,0.00010136,2]
[347750483,1736093474955,-524.21,0.00010136,2]
[347750484,1736093474964,-1166.37,0.00010136,2]
[347750485,1736093474974,-502.97,0.00010136,2]
[347750486,1736093474985,-1494.76,0.00010136,2]
[347750487,1736093474995,-2102.36,0.00010136,2]
[347750488,1736093475005,-1697.98,0.00010136,2]
[347750489,1736093475016,-500.0,0.00010136,2]
[347750490,1736093475026,-377.105117,0.00010136,2]
[347750491,1736093475036,-2476.3,0.00010136,2]
[347750492,1736093475045,-404.362946,0.00010136,2]
[347750493,1736093475056,-707.61,0.00010136,2]
[347750494,1736093475066,-500.0,0.00010136,2]
[347750495,1736093475077,-2758.22,0.00010136,2]
[347750496,1736093475086,-1004.07,0.00010136,2]
[347750497,1736093475096,-500.0,0.00010136,2]
[347750498,1736093475105,-994.13,0.00010136,2]
[347750499,1736093475115,-540.89,0.00010136,2]
[347750500,1736093475127,-936.98,0.00010136,2]
[347750501,1736093475136,-638.23,0.00010136,2]
[347750502,1736093475147,-500.0,0.00010136,2]
[347750503,1736093475157,-714.43,0.00010136,2]
[347750504,1736093475167,-500.0,0.00010136,2]
[347750505,1736093475177,-376.50909,0.00010136,2]
[347750506,1736093475187,-404.088734,0.00010136,2]
[347750507,1736093475197,-4018.14,0.00010136,2]
[347750508,1736093475207,-579.85,0.00010136,2]
[347750509,1736093475217,-554.81,0.00010136,2]
[347750510,1736093475227,-768.81,0.00010136,2]
[347750511,1736093475237,-576.42,0.00010136,2]
[347750512,1736093475247,-1663.25,0.00010136,2]
[347750513,1736093475257,-500.0,0.00010136,2]
[347750514,1736093475267,-500.0,0.00010136,2]
[347750515,1736093475277,-375.919903,0.00010136,2]
[347750516,1736093475288,-870.76,0.00010136,2]
[347750517,1736093475298,-3514.34,0.00010136,2]
[347750518,1736093475308,-403.4983,0.00010136,2]
[347750519,1736093475318,-972.86,0.00010136,2]
[347750520,1736093475329,-500.0,0.00010136,2]
[347750521,1736093475338,-626.28,0.00010136,2]
[347750522,1736093475348,-1212.28,0.00010136,2]
[347750523,1736093475358,-1177.81,0.00010136,2]
[347750524,1736093475368,-928.76,0.00010136,2]
[347750525,1736093475377,-1032.98,0.00010136,2]
[347750526,1736093475388,-807.78,0.00010136,2]
[347750527,1736093475397,-569.16,0.00010136,2]
[347750528,1736093475407,-2723.22,0.00010136,2]
[347750529,1736093475418,-402.803781,0.00010136,2]
[347750530,1736093475428,-375.527974,0.00010136,2]
[347750531,1736093475439,-586.44,0.00010136,2]
[347750532,1736093475450,-647.44,0.00010136,2]
[347750533,1736093475461,-2820.24,0.00010136,2]
[347750534,1736093475471,-1463.16,0.00010136,2]
[347750535,1736093475481,-625.48,0.00010136,2]
[347750536,1736093475493,-2129.06,0.00010136,2]
[347750537,1736093475503,-758.75,0.00010136,2]
[347750538,1736093475512,-2335.63,0.00010136,2]
[347750539,1736093475522,-7531.06,0.00010136,2]
[347750540,1736093475533,-500.0,0.00010136,2]
[347750541,1736093475543,-931.19,0.00010136,2]
[347750542,1736093475553,-1840.4,0.00010136,2]
[347750543,1736093475564,-803.93,0.00010136,2]
[347750544,1736093475574,-917.79,0.00010136,2]
[347750545,1736093475585,-1119.32,0.00010136,2]
[347750546,1736093475595,-402.22777,0.00010136,2]
[347750547,1736093475605,-500.0,0.00010136,2]
[347750548,1736093475615,-3520.61,0.00010136,2]
[347750549,1736093475625,-706.11,0.00010136,2]
[347750550,1736093475635,-500.0,0.00010136,2]
[347750551,1736093475645,-557.28,0.00010136,2]
[347750552,1736093475655,-4019.56,0.00010136,2]
[347750553,1736093475665,-717.02,0.00010136,2]
[347750554,1736093475675,-159.6,0.00010137,2]
[347750555,1736093475686,-527.36,0.00010137,2]
[347750556,1736093475696,-184.81,0.00010137,2]
[347750557,1736093475706,-150.0,0.00010149,2]
[347750558,1736093475716,-500.0,0.00010168,2]
[347750559,1736093475726,-500.0,0.00010168,2]
[347750560,1736093475735,-150.0,0.00010206,2]
[347750561,1736093475745,-1000.0,0.00010274,2]
[347750562,1736093475757,-429.58022011,0.00010313,2]
[347750563,1736093475767,-150.0,0.00010368,2]
[347750564,1736093475777,-2521.11,0.00010382,2]
[347750565,1736093475786,-150.0,0.00010389,2]
[347750566,1736093475796,-500.0,0.0001041,2]
[347750567,1736093475806,-500.0,0.0001041,2]
[347750568,1736093475815,-500.0,0.0001041,2]
[347750569,1736093475825,-209.28865263,0.0001041,2]
[347750570,1736093475836,-518.61,0.0001041,2]
[347750571,1736093475846,-500.0,0.0001041,2]
[347750572,1736093475856,-1944.31,0.0001041,2]
[347750573,1736093475866,-500.0,0.0001041,2]
[347750574,1736093475876,-500.0,0.0001041,2]
[347750575,1736093475886,-500.0,0.0001041,2]
[347750576,1736093475895,-513.01,0.0001041,2]
[347750577,1736093475906,-1116.95,0.0001041,2]
[347750578,1736093475916,-647.32,0.0001041,2]
[347750579,1736093475925,-500.0,0.0001041,2]
[347750580,1736093475936,-1247.07,0.0001041,2]
[347750581,1736093475946,-710.57,0.0001041,2]
[347750582,1736093475956,-785.01,0.0001041,2]
[347750583,1736093475966,-2074.96,0.0001041,2]
[347750584,1736093475976,-500.0,0.0001041,2]
[347750585,1736093475985,-1942.88,0.0001041,2]
[347750586,1736093475995,-500.0,0.0001041,2]
[347750587,1736093476004,-582.62,0.0001041,2]
[347750588,1736093476015,-500.0,0.0001041,2]
[347750589,1736093476026,-5066.49,0.0001041,2]
[347750590,1736093476038,-1196.95,0.0001041,2]
[347750591,1736093476048,-500.0,0.0001041,2]
[347750592,1736093476058,-500.0,0.0001041,2]
[347750593,1736093476067,-651.13,0.0001041,2]
[347750594,1736093476077,-1012.85,0.0001041,2]
[347750595,1736093476087,-500.0,0.0001041,2]
[347750596,1736093476098,-511.08,0.0001041,2]
[347750597,1736093476108,-766.4,0.0001041,2]
[347750598,1736093476118,-1917.18,0.0001041,2]
[347750599,1736093476128,-500.0,0.0001041,2]
[347750600,1736093476139,-155.826196,0.0001041,2]
[347750601,1736093476149,-751.14,0.0001041,2]
[347750602,1736093476158,-500.0,0.0001041,2]
[347750603,1736093476169,-952.56,0.0001041,2]
[347750604,1736093476178,-754.41,0.0001041,2]
[347750605,1736093476189,-1737.28,0.0001041,2]
[347750606,1736093476200,-886.39,0.0001041,2]
[347750607,1736093476210,-500.0,0.0001041,2]
[347750608,1736093476220,-500.0,0.0001041,2]
[347750609,1736093476230,-500.0,0.0001041,2]
[347750610,1736093476240,-526.36,0.0001041,2]
[347750611,1736093476251,-737.15,0.0001041,2]
[347750612,1736093476261,-3524.74,0.0001041,2]
[347750613,1736093476271,-500.0,0.0001041,2]
[347750614,1736093476281,-500.0,0.0001041,2]
[347750615,1736093476291,-761.43,0.0001041,2]
[347750616,1736093476300,-500.0,0.0001041,2]
[347750617,1736093476310,-500.0,0.0001041,2]
[347750618,1736093476320,-642.49,0.0001041,2]
[347750619,1736093476330,-562.21,0.0001041,2]
[347750620,1736093476341,-735.44,0.0001041,2]
[347750621,1736093476353,-500.0,0.0001041,2]
[347750622,1736093476363,-500.0,0.0001041,2]
[347750623,1736093476374,-3187.24,0.0001041,2]
[347750624,1736093476384,-546.34,0.0001041,2]
[347750625,1736093476394,-520.15,0.0001041,2]
[347750626,1736093476405,-882.75,0.0001041,2]
[347750627,1736093476415,-379.76588204,0.0001041,2]
[347750628,1736093476427,-649.07,0.0001041,2]
[347750629,1736093476439,-844.88,0.0001041,2]
[347750630,1736093476449,-774.09,0.0001041,2]
[347750631,1736093476459,-2003.22,0.0001041,2]
[347750632,1736093476469,-500.0,0.0001041,2]
[347750633,1736093476479,-528.73,0.0001041,2]
[347750634,1736093476492,-852.93,0.0001041,2]
[347750635,1736093476503,-500.0,0.0001041,2]
[347750636,1736093476514,-810.2,0.0001041,2]
[347750637,1736093476525,-829.01,0.0001041,2]
[347750638,1736093476537,-531.05,0.0001041,2]
[347750639,1736093476546,-682.3,0.0001041,2]
[347750640,1736093476556,-549.67,0.0001041,2]
[347750641,1736093476566,-2055.76,0.0001041,2]
[347750642,1736093476578,-543.01,0.0001041,2]
[347750643,1736093476589,-500.0,0.0001041,2]
[347750644,1736093476598,-500.0,0.0001041,2]
[347750645,1736093476608,-500.0,0.0001041,2]
[347750646,1736093476618,-2363.08,0.0001041,2]
[347750647,1736093476628,-715.52,0.0001041,2]
[347750648,1736093476638,-608.96,0.0001041,2]
[347750649,1736093476648,-500.0,0.0001041,2]
[347750650,1736093476658,-500.0,0.0001041,2]
[347750651,1736093476668,-500.0,0.0001041,2]
[347750652,1736093476679,-511.54,0.0001041,2]
[347750653,1736093476908,-816.37,0.0001041,2]
[347750654,1736093476918,-547.7,0.0001041,2]
[347750655,1736093476928,-710.61,0.0001041,2]
[347750656,1736093476940,-2036.65,0.0001041,2]
[347750657,1736093476950,-560.43,0.0001041,2]
[347750658,1736093476960,-500.0,0.0001041,2]
[347750659,1736093476970,-1095.6,0.0001041,2]
[347750660,1736093476980,-540.03,0.0001041,2]
[347750661,1736093476989,-587.66,0.0001041,2]
[347750662,1736093476999,-500.0,0.0001041,2]
[347750663,1736093477009,-946.46,0.0001041,2]
[347750664,1736093477019,-584.75,0.0001041,2]
[347750665,1736093477029,-500.0,0.0001041,2]
[347750666,1736093477039,-777.09,0.0001041,2]
[347750667,1736093477049,-500.0,0.0001041,2]
[347750668,1736093477058,-500.0,0.0001041,2]
[347750669,1736093477067,-500.0,0.0001041,2]
[347750670,1736093477078,-500.0,0.0001041,2]
[347750671,1736093477088,-500.0,0.0001041,2]
[347750672,1736093477099,-660.74,0.0001041,2]
[347750673,1736093477109,-836.67,0.0001041,2]
[347750674,1736093477118,-3034.01,0.0001041,2]
[347750675,1736093477129,-645.35,0.0001041,2]
[347750676,1736093477139,-1046.1,0.0001041,2]
[347750677,1736093477149,-3701.46,0.0001041,2]
[347750678,1736093477158,-941.56,0.0001041,2]
[347750679,1736093477167,-500.0,0.0001041,2]
[347750680,1736093477177,-568.91,0.0001041,2]
[347750681,1736093477188,-833.84,0.0001041,2]